[Event "*** SCC Grand Prix: Titled Tuesday Blitz"]
[Site "Chess.com"]
[Date "2020.09.29"]
[Round "9"]
[White "MatyChess1"]
[Black "Kotofeyca"]
[Result "1-0"]
[WhiteElo "2495"]
[BlackElo "2343"]
[TimeControl "180+1"]
[EndTime "11:42:45 PDT"]
[Termination "MatyChess1 won on time"]

1. e4 {[%clk 0:03:00.9]} 1... c5 {[%clk 0:02:59.6]} 2. Nf3 {[%clk 0:03:00.4]}
2... d6 {[%clk 0:03:00.1]} 3. Nc3 {[%clk 0:02:58]} 3... Nf6 {[%clk 0:02:59.7]}
4. e5 {[%clk 0:02:57.9]} 4... dxe5 {[%clk 0:02:58.7]} 5. Nxe5 {[%clk 0:02:58.8]}
5... Nbd7 {[%clk 0:02:58.8]} 6. d4 {[%clk 0:02:58.2]} 6... Nxe5 {[%clk 0:02:48]}
7. dxe5 {[%clk 0:02:59.1]} 7... Qxd1+ {[%clk 0:02:47.7]} 8. Nxd1 {[%clk
0:02:57.8]} 8... Ng4 {[%clk 0:02:47.7]} 9. f4 {[%clk 0:02:56.1]} 9... e6 {[%clk
0:02:32.8]} 10. Be2 {[%clk 0:02:52.6]} 10... Nh6 {[%clk 0:02:30]} 11. Bf3 {[%clk
0:02:53]} 11... Nf5 {[%clk 0:02:24.9]} 12. c3 {[%clk 0:02:53]} 12... h5 {[%clk
0:02:10.7]} 13. g3 {[%clk 0:02:52.6]} 13... Be7 {[%clk 0:02:09.3]} 14. Nf2
{[%clk 0:02:49.9]} 14... Rb8 {[%clk 0:02:05.9]} 15. a4 {[%clk 0:02:49.4]} 15...
b6 {[%clk 0:02:00.2]} 16. Ke2 {[%clk 0:02:43.3]} 16... Bb7 {[%clk 0:01:58.8]}
17. Rd1 {[%clk 0:02:41.8]} 17... Bxf3+ {[%clk 0:01:53.4]} 18. Kxf3 {[%clk
0:02:42.7]} 18... Rd8 {[%clk 0:01:44.2]} 19. Rxd8+ {[%clk 0:02:41.9]} 19... Kxd8
{[%clk 0:01:41.6]} 20. a5 {[%clk 0:02:42.8]} 20... b5 {[%clk 0:01:37.8]} 21. Ne4
{[%clk 0:02:39.3]} 21... Kc7 {[%clk 0:01:35.1]} 22. Be3 {[%clk 0:02:38.2]} 22...
Kc6 {[%clk 0:01:30.1]} 23. Bf2 {[%clk 0:02:36.6]} 23... Rd8 {[%clk 0:01:25.1]}
24. h3 {[%clk 0:02:33]} 24... Rd3+ {[%clk 0:01:22.5]} 25. Ke2 {[%clk 0:02:32.4]}
25... c4 {[%clk 0:01:22.6]} 26. Bxa7 {[%clk 0:02:08.3]} 26... Nxg3+ {[%clk
0:00:56.5]} 27. Nxg3 {[%clk 0:02:07.4]} 27... Rxg3 {[%clk 0:00:57.4]} 28. Bf2
{[%clk 0:02:07.8]} 28... Rd3 {[%clk 0:00:37.8]} 29. Bd4 {[%clk 0:01:38]} 29...
Kb7 {[%clk 0:00:19.1]} 30. a6+ {[%clk 0:01:37.8]} 30... Ka8 {[%clk 0:00:18.8]}
31. Ra5 {[%clk 0:01:38.7]} 31... b4 {[%clk 0:00:13.9]} 32. Rb5 {[%clk
0:01:32.9]} 32... b3 {[%clk 0:00:10]} 33. Rb7 {[%clk 0:01:32]} 33... Bd8 {[%clk
0:00:06.4]} 34. Rxf7 {[%clk 0:01:30.8]} 34... Rxd4 {[%clk 0:00:04]} 35. cxd4
{[%clk 0:01:26.9]} 35... c3 {[%clk 0:00:04.9]} 36. bxc3 {[%clk 0:01:26.6]} 1-0

[Event "*** SCC Grand Prix: Titled Tuesday Blitz"]
[Site "Chess.com"]
[Date "2020.09.29"]
[Round "9"]
[White "SophieNikoladze"]
[Black "Justinz"]
[Result "0-1"]
[WhiteElo "2295"]
[BlackElo "2426"]
[TimeControl "180+1"]
[EndTime "11:42:45 PDT"]
[Termination "Justinz won on time"]

1. d4 {[%clk 0:02:59.1]} 1... Nf6 {[%clk 0:02:59.5]} 2. Nf3 {[%clk 0:02:58.5]}
2... e6 {[%clk 0:02:59.6]} 3. e3 {[%clk 0:02:58.7]} 3... d5 {[%clk 0:02:59.5]}
4. Bd3 {[%clk 0:02:58.6]} 4... Be7 {[%clk 0:02:58.9]} 5. Nbd2 {[%clk 0:02:58.6]}
5... Nbd7 {[%clk 0:02:59.5]} 6. b3 {[%clk 0:02:58.9]} 6... b6 {[%clk 0:03:00]}
7. Bb2 {[%clk 0:02:58.9]} 7... Bb7 {[%clk 0:03:00.6]} 8. O-O {[%clk 0:02:58.9]}
8... O-O {[%clk 0:03:01.1]} 9. Ne5 {[%clk 0:02:59.1]} 9... Nxe5 {[%clk
0:03:01.2]} 10. dxe5 {[%clk 0:02:58.6]} 10... Nd7 {[%clk 0:03:02.1]} 11. f4
{[%clk 0:02:57.9]} 11... Nc5 {[%clk 0:03:02.4]} 12. Bxh7+ {[%clk 0:02:49]} 12...
Kxh7 {[%clk 0:03:01.5]} 13. Qh5+ {[%clk 0:02:48.9]} 13... Kg8 {[%clk 0:02:59.7]}
14. Rf3 {[%clk 0:02:48.9]} 14... f6 {[%clk 0:02:52.4]} 15. Rh3 {[%clk
0:02:47.6]} 15... f5 {[%clk 0:02:39.3]} 16. Nf3 {[%clk 0:02:22.6]} 16... Ne4
{[%clk 0:02:33.1]} 17. Qg6 {[%clk 0:02:16.8]} 17... Qd7 {[%clk 0:02:11.6]} 18.
Ng5 {[%clk 0:01:58.6]} 18... Bxg5 {[%clk 0:02:02.7]} 19. fxg5 {[%clk 0:01:56.1]}
19... Rfe8 {[%clk 0:01:56.6]} 20. Qh7+ {[%clk 0:01:40.4]} 20... Kf8 {[%clk
0:01:56.4]} 21. g6 {[%clk 0:01:37.5]} 21... Ke7 {[%clk 0:01:56.3]} 22. Qxg7+
{[%clk 0:01:34.4]} 22... Kd8 {[%clk 0:01:56.5]} 23. Qh6 {[%clk 0:01:32.3]} 23...
c5 {[%clk 0:01:55.9]} 24. g7 {[%clk 0:01:30.8]} 24... Kc7 {[%clk 0:01:55.9]} 25.
Qg6 {[%clk 0:01:24.9]} 25... Rg8 {[%clk 0:01:55]} 26. Rh7 {[%clk 0:01:23.6]}
26... Qe8 {[%clk 0:01:54.1]} 27. Qh6 {[%clk 0:01:21.9]} 27... Rd8 {[%clk
0:01:51.2]} 28. h4 {[%clk 0:01:19.3]} 28... Rd7 {[%clk 0:01:50.8]} 29. h5 {[%clk
0:01:17]} 29... Qf7 {[%clk 0:01:47.6]} 30. Rf1 {[%clk 0:01:08.5]} 30... Re7
{[%clk 0:01:34.4]} 31. g4 {[%clk 0:01:00.4]} 31... Rxg7 {[%clk 0:01:33.6]} 32.
Rxg7 {[%clk 0:00:58.3]} 32... Qxg7 {[%clk 0:01:33.8]} 33. Qxg7 {[%clk 0:00:57]}
33... Rxg7 {[%clk 0:01:33.8]} 34. h6 {[%clk 0:00:57.1]} 34... Rxg4+ {[%clk
0:01:33.9]} 35. Kh1 {[%clk 0:00:57.1]} 35... Rh4+ {[%clk 0:01:33.8]} 36. Kg2
{[%clk 0:00:57.4]} 36... Rxh6 {[%clk 0:01:33.7]} 37. Rf3 {[%clk 0:00:55.5]}
37... d4 {[%clk 0:01:32]} 38. exd4 {[%clk 0:00:54.9]} 38... Nd2 {[%clk
0:01:31.6]} 0-1

[Event "*** SCC Grand Prix: Titled Tuesday Blitz"]
[Site "Chess.com"]
[Date "2020.09.29"]
[Round "9"]
[White "XDPS"]
[Black "kosya4ok"]
[Result "0-1"]
[WhiteElo "2743"]
[BlackElo "2626"]
[TimeControl "180+1"]
[EndTime "11:42:47 PDT"]
[Termination "kosya4ok won on time"]

1. e4 {[%clk 0:03:00.9]} 1... e5 {[%clk 0:02:59.6]} 2. Nf3 {[%clk 0:03:00.1]}
2... Nc6 {[%clk 0:03:00.2]} 3. Bb5 {[%clk 0:02:59.5]} 3... a6 {[%clk 0:03:00.6]}
4. Ba4 {[%clk 0:02:59.2]} 4... Nf6 {[%clk 0:02:59.7]} 5. O-O {[%clk 0:02:57.1]}
5... Be7 {[%clk 0:03:00]} 6. d3 {[%clk 0:02:53.2]} 6... b5 {[%clk 0:02:56.1]} 7.
Bb3 {[%clk 0:02:53.6]} 7... d6 {[%clk 0:02:57]} 8. a3 {[%clk 0:02:53.3]} 8...
O-O {[%clk 0:02:50.8]} 9. Nc3 {[%clk 0:02:52]} 9... Na5 {[%clk 0:02:51.1]} 10.
Ba2 {[%clk 0:02:51.9]} 10... Be6 {[%clk 0:02:51.6]} 11. b4 {[%clk 0:02:18.1]}
11... Bxa2 {[%clk 0:02:49.4]} 12. Nxa2 {[%clk 0:02:17.8]} 12... Nc6 {[%clk
0:02:50.3]} 13. Bd2 {[%clk 0:02:11.6]} 13... a5 {[%clk 0:02:40.9]} 14. Qb1
{[%clk 0:01:56.8]} 14... axb4 {[%clk 0:02:31.1]} 15. axb4 {[%clk 0:01:57.7]}
15... Qd7 {[%clk 0:02:31.4]} 16. Qb3 {[%clk 0:01:48.1]} 16... Ra4 {[%clk
0:02:16.8]} 17. c4 {[%clk 0:01:37.4]} 17... Rfa8 {[%clk 0:02:13.2]} 18. cxb5
{[%clk 0:01:24.7]} 18... Nd4 {[%clk 0:02:12.3]} 19. Nxd4 {[%clk 0:01:24.3]}
19... exd4 {[%clk 0:02:13.2]} 20. Qc4 {[%clk 0:01:13.5]} 20... d5 {[%clk
0:01:37.5]} 21. exd5 {[%clk 0:00:18.7]} 21... Nxd5 {[%clk 0:01:38.4]} 22. Rfe1
{[%clk 0:00:12.6]} 22... Nb6 {[%clk 0:01:25.6]} 23. Qb3 {[%clk 0:00:12.5]} 23...
Qd5 {[%clk 0:01:19.1]} 24. Qd1 {[%clk 0:00:08.5]} 24... Bd6 {[%clk 0:01:15.2]}
25. Qe2 {[%clk 0:00:05.3]} 25... h6 {[%clk 0:01:13]} 26. Qg4 {[%clk 0:00:02.1]}
26... Kh7 {[%clk 0:01:05.7]} 0-1

[Event "*** SCC Grand Prix: Titled Tuesday Blitz"]
[Site "Chess.com"]
[Date "2020.09.29"]
[Round "9"]
[White "chegueps"]
[Black "almo64"]
[Result "0-1"]
[WhiteElo "2479"]
[BlackElo "2697"]
[TimeControl "180+1"]
[EndTime "11:42:47 PDT"]
[Termination "almo64 won by resignation"]

1. d4 {[%clk 0:02:55.5]} 1... c6 {[%clk 0:02:58.7]} 2. Nf3 {[%clk 0:02:50.9]}
2... Nf6 {[%clk 0:02:53.8]} 3. e3 {[%clk 0:02:44.4]} 3... g6 {[%clk 0:02:52.4]}
4. Bd3 {[%clk 0:02:43.7]} 4... Bg7 {[%clk 0:02:52.6]} 5. O-O {[%clk 0:02:44.6]}
5... O-O {[%clk 0:02:52.5]} 6. b3 {[%clk 0:02:44.1]} 6... d6 {[%clk 0:02:53]} 7.
Bb2 {[%clk 0:02:44.7]} 7... Nbd7 {[%clk 0:02:53.7]} 8. Nbd2 {[%clk 0:02:44.7]}
8... Re8 {[%clk 0:02:54.4]} 9. e4 {[%clk 0:02:41.4]} 9... e5 {[%clk 0:02:52.1]}
10. dxe5 {[%clk 0:02:41.1]} 10... dxe5 {[%clk 0:02:51]} 11. Nc4 {[%clk
0:02:37.1]} 11... Qc7 {[%clk 0:02:51.3]} 12. Ba3 {[%clk 0:02:36.3]} 12... Bf8
{[%clk 0:02:50]} 13. Qc1 {[%clk 0:02:33.1]} 13... Nc5 {[%clk 0:02:47.7]} 14. Qb2
{[%clk 0:02:24.5]} 14... Nfd7 {[%clk 0:01:55.5]} 15. Rfe1 {[%clk 0:02:00.6]}
15... b5 {[%clk 0:01:54.8]} 16. Bxc5 {[%clk 0:01:48.2]} 16... Nxc5 {[%clk
0:01:43.1]} 17. Ne3 {[%clk 0:01:36]} 17... f6 {[%clk 0:01:28.5]} 18. h3 {[%clk
0:01:29.7]} 18... Be6 {[%clk 0:01:26.1]} 19. a3 {[%clk 0:01:10.9]} 19... Bxb3
{[%clk 0:01:16.5]} 20. Bxb5 {[%clk 0:01:10.5]} 20... cxb5 {[%clk 0:01:15]} 21.
cxb3 {[%clk 0:01:10.1]} 21... Nd3 {[%clk 0:01:15.3]} 22. Nd5 {[%clk 0:01:07.4]}
22... Qf7 {[%clk 0:01:10.9]} 23. Qe2 {[%clk 0:00:50.8]} 23... Nxe1 {[%clk
0:01:10.7]} 24. Nxe1 {[%clk 0:00:49.6]} 24... f5 {[%clk 0:00:59.4]} 25. Nd3
{[%clk 0:00:45.7]} 25... fxe4 {[%clk 0:00:58.1]} 26. Qxe4 {[%clk 0:00:46.6]}
26... Rad8 {[%clk 0:00:55.6]} 27. Ne3 {[%clk 0:00:22.1]} 27... Rd4 {[%clk
0:00:55.2]} 0-1

[Event "*** SCC Grand Prix: Titled Tuesday Blitz"]
[Site "Chess.com"]
[Date "2020.09.29"]
[Round "9"]
[White "BikingBrian"]
[Black "RamyresCoelho"]
[Result "1-0"]
[WhiteElo "2203"]
[BlackElo "2014"]
[TimeControl "180+1"]
[EndTime "11:42:47 PDT"]
[Termination "BikingBrian won by resignation"]

1. d4 {[%clk 0:03:00.9]} 1... Nf6 {[%clk 0:02:59.7]} 2. Bg5 {[%clk 0:02:59.8]}
2... Ne4 {[%clk 0:02:59.5]} 3. Bf4 {[%clk 0:02:59.8]} 3... c5 {[%clk 0:02:59.4]}
4. f3 {[%clk 0:03:00.1]} 4... Qa5+ {[%clk 0:02:59.1]} 5. c3 {[%clk 0:03:00]}
5... Nf6 {[%clk 0:02:57.1]} 6. d5 {[%clk 0:03:00.4]} 6... d6 {[%clk 0:02:42.9]}
7. Qd2 {[%clk 0:02:56.1]} 7... g6 {[%clk 0:02:40.8]} 8. c4 {[%clk 0:02:55.5]}
8... Qxd2+ {[%clk 0:02:39.9]} 9. Kxd2 {[%clk 0:02:56.4]} 9... Bg7 {[%clk
0:02:38.1]} 10. Nc3 {[%clk 0:02:54.3]} 10... O-O {[%clk 0:02:35.7]} 11. e4
{[%clk 0:02:54.5]} 11... Nh5 {[%clk 0:02:35.9]} 12. Bg5 {[%clk 0:02:51]} 12...
Bf6 {[%clk 0:02:32.5]} 13. Bh6 {[%clk 0:02:50]} 13... Bg7 {[%clk 0:02:32.2]} 14.
Bxg7 {[%clk 0:02:49.3]} 14... Nxg7 {[%clk 0:02:32.3]} 15. Bd3 {[%clk 0:02:47.2]}
15... f5 {[%clk 0:02:31.5]} 16. Nge2 {[%clk 0:02:45.4]} 16... Nd7 {[%clk
0:02:29.7]} 17. f4 {[%clk 0:02:32.5]} 17... e5 {[%clk 0:02:16.3]} 18. dxe6
{[%clk 0:02:25.2]} 18... Ne5 {[%clk 0:02:17.2]} 19. fxe5 {[%clk 0:02:24.4]}
19... dxe5 {[%clk 0:02:13.3]} 20. e7 {[%clk 0:02:18.5]} 20... Re8 {[%clk
0:02:13.3]} 21. Nd5 {[%clk 0:02:18.7]} 21... Ne6 {[%clk 0:02:11]} 22. Nf6+
{[%clk 0:02:16.1]} 22... Kf7 {[%clk 0:02:10.9]} 23. Nxe8 {[%clk 0:02:16.6]}
23... Kxe8 {[%clk 0:02:11.8]} 24. exf5 {[%clk 0:02:15.8]} 24... gxf5 {[%clk
0:02:11.7]} 25. Bxf5 {[%clk 0:02:15.6]} 25... Kxe7 {[%clk 0:02:12.6]} 26. Bxh7
{[%clk 0:02:11.3]} 26... Ng5 {[%clk 0:02:08.7]} 27. Bc2 {[%clk 0:02:03.8]} 27...
Bg4 {[%clk 0:02:08.6]} 28. Nc3 {[%clk 0:02:02.2]} 28... Rd8+ {[%clk 0:02:08.8]}
29. Nd5+ {[%clk 0:02:02.2]} 29... Ke6 {[%clk 0:02:05.2]} 30. h3 {[%clk
0:01:58.5]} 30... Bh5 {[%clk 0:02:02.2]} 31. g4 {[%clk 0:01:56.7]} 31... Nf3+
{[%clk 0:02:02.1]} 32. Ke3 {[%clk 0:01:55.7]} 32... Nd4 {[%clk 0:02:01.7]} 33.
Bf5+ {[%clk 0:01:52.7]} 33... Nxf5+ {[%clk 0:02:00.3]} 34. gxf5+ {[%clk
0:01:52.3]} 34... Kxf5 {[%clk 0:02:00.5]} 35. Raf1+ {[%clk 0:01:51.8]} 35... Ke6
{[%clk 0:01:58.4]} 36. Rf6+ {[%clk 0:01:50]} 36... Kd7 {[%clk 0:01:58.1]} 37.
Rg1 {[%clk 0:01:49]} 37... Be8 {[%clk 0:01:54.6]} 38. Rg7+ {[%clk 0:01:48.6]}
38... Kc8 {[%clk 0:01:55]} 39. h4 {[%clk 0:01:45.9]} 39... b5 {[%clk 0:01:50.9]}
40. b3 {[%clk 0:01:41.8]} 40... bxc4 {[%clk 0:01:51]} 41. bxc4 {[%clk
0:01:42.4]} 41... a5 {[%clk 0:01:47.2]} 42. Ra6 {[%clk 0:01:39.7]} 42... Kb8
{[%clk 0:01:45.1]} 43. Rb6+ {[%clk 0:01:35.4]} 43... Ka8 {[%clk 0:01:39.1]} 44.
Nc7+ {[%clk 0:01:34.3]} 44... Ka7 {[%clk 0:01:38.3]} 45. Re6 {[%clk 0:01:25.8]}
45... Bd7 {[%clk 0:01:22.4]} 46. Nb5+ {[%clk 0:01:21.9]} 46... Ka8 {[%clk
0:01:17.3]} 47. Rd6 {[%clk 0:01:20.7]} 47... e4 {[%clk 0:01:09.6]} 48. Rdxd7
{[%clk 0:01:20.4]} 48... Rh8 {[%clk 0:00:58.7]} 49. Ra7+ {[%clk 0:01:15.8]}
49... Kb8 {[%clk 0:00:59.6]} 50. Rgb7+ {[%clk 0:01:14.8]} 50... Kc8 {[%clk
0:00:58.3]} 51. Ra8+ {[%clk 0:01:14.6]} 51... Kxb7 {[%clk 0:00:58.4]} 52. Rxh8
{[%clk 0:01:15.5]} 52... a4 {[%clk 0:00:58.9]} 53. Rh6 {[%clk 0:01:14.6]} 53...
a3 {[%clk 0:00:59.8]} 54. Rg6 {[%clk 0:01:14.6]} 1-0

[Event "*** SCC Grand Prix: Titled Tuesday Blitz"]
[Site "Chess.com"]
[Date "2020.09.29"]
[Round "9"]
[White "Miss_JJ20"]
[Black "ChrisTool2"]
[Result "1-0"]
[WhiteElo "2459"]
[BlackElo "2341"]
[TimeControl "180+1"]
[EndTime "11:42:53 PDT"]
[Termination "Miss_JJ20 won by resignation"]

1. d4 {[%clk 0:03:00.9]} 1... Nf6 {[%clk 0:02:57.1]} 2. Nc3 {[%clk 0:03:00.7]}
2... e6 {[%clk 0:02:56.3]} 3. e4 {[%clk 0:02:44.5]} 3... d5 {[%clk 0:02:56.6]}
4. exd5 {[%clk 0:02:36.7]} 4... exd5 {[%clk 0:02:54.8]} 5. Bd3 {[%clk
0:02:35.9]} 5... c6 {[%clk 0:02:52.4]} 6. Bg5 {[%clk 0:02:27.9]} 6... Be7 {[%clk
0:02:52.8]} 7. h3 {[%clk 0:02:18.4]} 7... O-O {[%clk 0:02:52.4]} 8. Qf3 {[%clk
0:02:18.6]} 8... Re8 {[%clk 0:02:47.4]} 9. Nge2 {[%clk 0:02:18.6]} 9... b5
{[%clk 0:02:43.8]} 10. a3 {[%clk 0:02:13]} 10... Nbd7 {[%clk 0:02:39.3]} 11. O-O
{[%clk 0:02:08.1]} 11... Nf8 {[%clk 0:02:39.8]} 12. Rfe1 {[%clk 0:02:07.4]}
12... Ne6 {[%clk 0:02:38.6]} 13. Be3 {[%clk 0:02:06.6]} 13... a5 {[%clk
0:02:30.5]} 14. Ng3 {[%clk 0:01:54.9]} 14... Bd7 {[%clk 0:02:09.3]} 15. Nf5
{[%clk 0:01:50.9]} 15... Bf8 {[%clk 0:02:05.1]} 16. Ne2 {[%clk 0:01:36.6]} 16...
Kh8 {[%clk 0:01:47.7]} 17. Neg3 {[%clk 0:01:35.2]} 17... Ra7 {[%clk 0:01:18.4]}
18. c3 {[%clk 0:01:30.3]} 18... Bc8 {[%clk 0:01:15.5]} 19. Re2 {[%clk
0:01:28.7]} 19... g6 {[%clk 0:01:05.6]} 20. Nh6 {[%clk 0:01:28.2]} 20... Bg7
{[%clk 0:00:43.6]} 21. Rae1 {[%clk 0:01:25.2]} 21... Rae7 {[%clk 0:00:40.1]} 22.
h4 {[%clk 0:01:14.5]} 22... Qc7 {[%clk 0:00:28.3]} 23. Bg5 {[%clk 0:00:51.4]}
23... Nxg5 {[%clk 0:00:26.9]} 24. hxg5 {[%clk 0:00:52.3]} 24... Ng8 {[%clk
0:00:12.9]} 25. Rxe7 {[%clk 0:00:47]} 25... Rxe7 {[%clk 0:00:12.1]} 26. Rxe7
{[%clk 0:00:47]} 1-0

[Event "*** SCC Grand Prix: Titled Tuesday Blitz"]
[Site "Chess.com"]
[Date "2020.09.29"]
[Round "9"]
[White "SergeyShtyka"]
[Black "The_Machine04"]
[Result "0-1"]
[WhiteElo "2348"]
[BlackElo "2295"]
[TimeControl "180+1"]
[EndTime "11:43:00 PDT"]
[Termination "The_Machine04 won by checkmate"]

1. e4 {[%clk 0:03:00.9]} 1... d6 {[%clk 0:00:16.6]} 2. d4 {[%clk 0:02:25.9]}
2... Nf6 {[%clk 0:00:17.5]} 3. Nc3 {[%clk 0:02:25.6]} 3... e5 {[%clk 0:00:18]}
4. Nf3 {[%clk 0:02:23.7]} 4... Nbd7 {[%clk 0:00:17.9]} 5. Bc4 {[%clk 0:02:23.1]}
5... Be7 {[%clk 0:00:18.4]} 6. Bxf7+ {[%clk 0:02:22.3]} 6... Kxf7 {[%clk
0:00:19.3]} 7. Ng5+ {[%clk 0:02:22.8]} 7... Kg8 {[%clk 0:00:19]} 8. Ne6 {[%clk
0:02:23.7]} 8... Qe8 {[%clk 0:00:19.6]} 9. Nxc7 {[%clk 0:02:24.3]} 9... Qg6
{[%clk 0:00:19.9]} 10. Nxa8 {[%clk 0:02:24.6]} 10... Qxg2 {[%clk 0:00:19.5]} 11.
Rf1 {[%clk 0:02:25]} 11... exd4 {[%clk 0:00:19.9]} 12. Qxd4 {[%clk 0:02:22.8]}
12... Ne5 {[%clk 0:00:19.9]} 13. f4 {[%clk 0:01:46.8]} 13... Nfg4 {[%clk
0:00:17.7]} 14. Qg1 {[%clk 0:01:27.4]} 14... Bh4+ {[%clk 0:00:17.3]} 15. Kd1
{[%clk 0:01:27.4]} 15... Nf2+ {[%clk 0:00:12.7]} 16. Ke2 {[%clk 0:01:27.8]}
16... Bg4+ {[%clk 0:00:11.3]} 17. Ke3 {[%clk 0:01:24.9]} 17... Qf3+ {[%clk
0:00:09.6]} 18. Kd4 {[%clk 0:01:24.9]} 18... Nc6+ {[%clk 0:00:07.9]} 19. Kd5
{[%clk 0:01:17.8]} 19... Kf7 {[%clk 0:00:06.3]} 20. f5 {[%clk 0:01:06.9]} 20...
Re8 {[%clk 0:00:05.8]} 21. Nc7 {[%clk 0:00:52.2]} 21... Rxe4 {[%clk 0:00:05.4]}
22. Nxe4 {[%clk 0:00:47.2]} 22... Qxe4+ {[%clk 0:00:06.3]} 23. Kxd6 {[%clk
0:00:47.6]} 23... Be7+ {[%clk 0:00:05.7]} 24. Kd7 {[%clk 0:00:46.1]} 24... Bxf5+
{[%clk 0:00:05.7]} 25. Ne6 {[%clk 0:00:43.2]} 25... Qxe6+ {[%clk 0:00:05.4]} 26.
Kc7 {[%clk 0:00:43.6]} 26... Qd7# {[%clk 0:00:05.5]} 0-1

[Event "*** SCC Grand Prix: Titled Tuesday Blitz"]
[Site "Chess.com"]
[Date "2020.09.29"]
[Round "9"]
[White "TC2304"]
[Black "Nastya_Rakhmangulova"]
[Result "1-0"]
[WhiteElo "2327"]
[BlackElo "2419"]
[TimeControl "180+1"]
[EndTime "11:43:01 PDT"]
[Termination "TC2304 won on time"]

1. d4 {[%clk 0:03:00.9]} 1... d5 {[%clk 0:03:00.1]} 2. c4 {[%clk 0:03:01]} 2...
c6 {[%clk 0:03:00.7]} 3. Nc3 {[%clk 0:03:01.2]} 3... Nf6 {[%clk 0:03:01.1]} 4.
e3 {[%clk 0:03:01.7]} 4... Bf5 {[%clk 0:03:00]} 5. cxd5 {[%clk 0:03:00.5]} 5...
cxd5 {[%clk 0:02:59.5]} 6. Qb3 {[%clk 0:03:01.2]} 6... Nc6 {[%clk 0:02:59.7]} 7.
Qxb7 {[%clk 0:02:59]} 7... Bd7 {[%clk 0:03:00.1]} 8. Qb3 {[%clk 0:02:53.3]} 8...
Rb8 {[%clk 0:03:00.2]} 9. Qd1 {[%clk 0:02:52.8]} 9... e5 {[%clk 0:03:00.7]} 10.
Nf3 {[%clk 0:02:51.4]} 10... Bd6 {[%clk 0:02:57.6]} 11. Be2 {[%clk 0:02:46.1]}
11... e4 {[%clk 0:02:39.9]} 12. Nd2 {[%clk 0:02:41.6]} 12... O-O {[%clk
0:02:39.9]} 13. f3 {[%clk 0:02:39.1]} 13... Qc7 {[%clk 0:02:33.5]} 14. fxe4
{[%clk 0:02:10.3]} 14... Bxh2 {[%clk 0:02:23.9]} 15. e5 {[%clk 0:02:07.1]} 15...
Bg3+ {[%clk 0:02:23.1]} 16. Kf1 {[%clk 0:02:05.9]} 16... Ne4 {[%clk 0:01:28]}
17. Nxd5 {[%clk 0:01:52.5]} 17... Nxd2+ {[%clk 0:01:27.1]} 18. Bxd2 {[%clk
0:01:52.3]} 18... Qd8 {[%clk 0:01:25.7]} 19. Qc2 {[%clk 0:01:18.6]} 19... h6
{[%clk 0:01:11.2]} 20. Rxh6 {[%clk 0:01:08]} 20... gxh6 {[%clk 0:00:45.1]} 21.
Nf6+ {[%clk 0:01:06.4]} 21... Qxf6+ {[%clk 0:00:44.8]} 22. exf6 {[%clk
0:01:07.3]} 22... Rfc8 {[%clk 0:00:39.7]} 23. Qe4 {[%clk 0:01:03.9]} 23... Rxb2
{[%clk 0:00:36.6]} 24. Be1 {[%clk 0:00:58.7]} 24... Bb8 {[%clk 0:00:23]} 25. Qh4
{[%clk 0:00:55.4]} 25... Nd8 {[%clk 0:00:05]} 26. Qxh6 {[%clk 0:00:51.7]} 26...
Ne6 {[%clk 0:00:04.8]} 27. Bg4 {[%clk 0:00:51.4]} 27... Bb5+ {[%clk 0:00:04.3]}
28. Kg1 {[%clk 0:00:50.8]} 1-0

[Event "*** SCC Grand Prix: Titled Tuesday Blitz"]
[Site "Chess.com"]
[Date "2020.09.29"]
[Round "9"]
[White "juancruzarias"]
[Black "GMaka"]
[Result "0-1"]
[WhiteElo "2490"]
[BlackElo "2382"]
[TimeControl "180+1"]
[EndTime "11:43:02 PDT"]
[Termination "GMaka won by checkmate"]

1. e4 {[%clk 0:03:00.9]} 1... e6 {[%clk 0:02:57.4]} 2. d4 {[%clk 0:02:59.2]}
2... d5 {[%clk 0:02:58.3]} 3. exd5 {[%clk 0:03:00.1]} 3... exd5 {[%clk
0:02:55.5]} 4. c4 {[%clk 0:03:00.2]} 4... c6 {[%clk 0:02:55.3]} 5. Nc3 {[%clk
0:02:56.8]} 5... Nf6 {[%clk 0:02:55.5]} 6. Nf3 {[%clk 0:02:57.2]} 6... Bb4
{[%clk 0:02:50.9]} 7. Be2 {[%clk 0:02:56.7]} 7... dxc4 {[%clk 0:02:47]} 8. Bxc4
{[%clk 0:02:57.6]} 8... O-O {[%clk 0:02:35.9]} 9. O-O {[%clk 0:02:57.1]} 9...
Bg4 {[%clk 0:02:36.4]} 10. Be3 {[%clk 0:02:49.8]} 10... Nbd7 {[%clk 0:02:32.1]}
11. h3 {[%clk 0:02:48.2]} 11... Bh5 {[%clk 0:02:30.1]} 12. g4 {[%clk 0:02:42.1]}
12... Bg6 {[%clk 0:02:08.8]} 13. Ne5 {[%clk 0:02:41.3]} 13... Nb6 {[%clk
0:02:05.4]} 14. Bb3 {[%clk 0:02:28.9]} 14... Bxc3 {[%clk 0:01:51]} 15. bxc3
{[%clk 0:02:28.4]} 15... Ne4 {[%clk 0:01:51.9]} 16. Rc1 {[%clk 0:01:56.2]} 16...
Nd5 {[%clk 0:01:41]} 17. Qf3 {[%clk 0:01:38]} 17... Nexc3 {[%clk 0:01:32.7]} 18.
Bd2 {[%clk 0:01:26.1]} 18... Be4 {[%clk 0:01:20.5]} 19. Rxc3 {[%clk 0:01:03.8]}
19... Bxf3 {[%clk 0:01:17.4]} 20. Rxf3 {[%clk 0:01:04.7]} 20... f6 {[%clk
0:01:10.4]} 21. Nd3 {[%clk 0:01:04.6]} 21... a5 {[%clk 0:01:08.9]} 22. a4 {[%clk
0:01:01.6]} 22... Kh8 {[%clk 0:01:04.1]} 23. Nc5 {[%clk 0:01:01.7]} 23... Re8
{[%clk 0:00:59.2]} 24. Nxb7 {[%clk 0:00:55.7]} 24... Qb6 {[%clk 0:00:56.4]} 25.
Nc5 {[%clk 0:00:56.2]} 25... Re2 {[%clk 0:00:50.8]} 26. Be3 {[%clk 0:00:51]}
26... Nxe3 {[%clk 0:00:48.1]} 27. fxe3 {[%clk 0:00:51.9]} 27... Re8 {[%clk
0:00:47.5]} 28. g5 {[%clk 0:00:51.4]} 28... R2xe3 {[%clk 0:00:41]} 29. gxf6
{[%clk 0:00:51.2]} 29... gxf6 {[%clk 0:00:39]} 30. Rxf6 {[%clk 0:00:49.6]} 30...
Rxb3 {[%clk 0:00:33.6]} 31. Rf7 {[%clk 0:00:40.3]} 31... Rg8+ {[%clk 0:00:26.8]}
32. Kh1 {[%clk 0:00:39.7]} 32... Rxh3# {[%clk 0:00:25.8]} 0-1